bitfinex/quotes_BTCUSD_20250602
["timestamp","ask_amount","ask_price","bid_price","bid_amount"]
[1748828667431,0.55703552,105420.0,105410.0,0.24344536]
[1748828667787,0.55703552,105420.0,105410.0,0.25293209]
[1748828668236,0.55703552,105420.0,105410.0,0.24404395]
[1748828669810,0.55687141,105420.0,105410.0,0.24404395]
[1748828670215,0.55687141,105420.0,105410.0,0.25293211]
[1748828670439,0.55687141,105420.0,105410.0,0.24404395]
[1748828672075,0.55687141,105420.0,105410.0,0.25293211]
[1748828672283,0.55687141,105420.0,105410.0,0.24404395]
[1748828672498,0.55687141,105420.0,105410.0,0.25293211]
[1748828672716,0.55687141,105420.0,105410.0,0.24404395]
[1748828673144,0.55687141,105420.0,105410.0,0.25293211]
[1748828673355,0.55687141,105420.0,105410.0,0.24404395]
[1748828673575,0.56635718,105420.0,105410.0,0.05371013]
[1748828673778,0.56635718,105420.0,105410.0,0.04482197]
[1748828673983,0.56635718,105420.0,105410.0,0.23455728]
[1748828674435,0.56635718,105420.0,105410.0,0.24344543]
[1748828674880,0.56635718,105420.0,105410.0,0.23455728]
[1748828675122,0.56635718,105420.0,105410.0,0.24344543]
[1748828675566,0.56635718,105420.0,105410.0,0.52603728]
[1748828676015,0.56617506,105420.0,105410.0,0.52603728]
[1748828677714,0.02697197,105420.0,105410.0,0.87173846]
[1748828678078,0.03645711,105420.0,105410.0,0.96759276]
[1748828678876,0.01243112,105420.0,105410.0,0.96455755]
[1748828679076,0.01243112,105420.0,105410.0,0.96759249]
[1748828679275,0.01243112,105420.0,105410.0,0.65085051]
[1748828680684,0.01243112,105420.0,105410.0,0.65449894]
[1748828681581,0.01243112,105420.0,105410.0,0.65085051]
[1748828682733,0.01230803,105420.0,105410.0,0.65085051]
[1748828683417,0.01230803,105420.0,105410.0,0.65085043]
[1748828684031,0.02179308,105420.0,105410.0,0.65085043]
[1748828684233,0.01230803,105420.0,105410.0,0.65085043]
[1748828686037,0.01230803,105420.0,105410.0,0.66045377]
[1748828687675,0.01230803,105420.0,105410.0,0.66045376]
[1748828688344,0.01216193,105420.0,105410.0,0.66045376]
[1748828688513,0.02164698,105420.0,105410.0,0.66045376]
[1748828688725,0.02164698,105420.0,105410.0,0.65085042]
[1748828690277,0.01216193,105420.0,105410.0,0.65085042]
[1748828691065,0.01216193,105420.0,105410.0,0.66047942]
[1748828691266,0.01216193,105420.0,105410.0,0.65085042]
[1748828692225,0.01216193,105420.0,105410.0,0.65085037]
[1748828693411,0.02164707,105420.0,105410.0,0.65085037]
[1748828693587,0.02164698,105420.0,105410.0,0.65085037]
[1748828694672,0.02146786,105420.0,105410.0,0.65085037]
[1748828696036,0.02146786,105420.0,105410.0,0.66016581]
[1748828696474,0.02146786,105420.0,105410.0,0.66016586]
[1748828698101,0.02146786,105420.0,105410.0,0.65085042]
[1748828699430,0.05497926,105420.0,105410.0,0.35937042]
[1748828699659,0.05497908,105420.0,105410.0,0.61889042]
[1748828699880,0.0644644,105420.0,105410.0,0.61889042]
[1748828700767,0.0644644,105420.0,105410.0,0.61889044]
[1748828701232,0.06446476,105420.0,105410.0,0.61889044]
[1748828702005,0.06446476,105420.0,105410.0,0.32757044]
[1748828702251,0.28548325,105420.0,105410.0,0.52299632]
[1748828702469,0.27599793,105420.0,105410.0,0.00403487]
[1748828702710,0.26651252,105420.0,105410.0,0.01048676]
[1748828702928,0.26651252,105420.0,105410.0,0.001]
[1748828703363,0.26651252,105420.0,105410.0,0.01048667]
[1748828704029,0.25702684,105420.0,105410.0,0.20022198]
[1748828704250,0.25702684,105420.0,105410.0,0.20325719]
[1748828704672,0.25702684,105420.0,105410.0,0.2121385]
[1748828705424,0.25702684,105420.0,105410.0,0.21274377]
[1748828705614,0.25702684,105420.0,105410.0,0.22162508]
[1748828706018,0.25702684,105420.0,105410.0,0.20325719]
[1748828706377,0.25702684,105420.0,105410.0,0.2121385]
[1748828706610,0.25702684,105420.0,105410.0,0.20325719]
[1748828707382,0.25702684,105420.0,105410.0,0.2121385]
[1748828707603,0.25702684,105420.0,105410.0,0.19377052]
[1748828708007,0.25702684,105420.0,105410.0,0.21213862]
[1748828708384,0.25702684,105420.0,105410.0,0.20325731]
[1748828708584,0.25702684,105420.0,105410.0,0.22162483]
[1748828709002,0.25702684,105420.0,105410.0,0.21274398]
[1748828709200,0.25702684,105420.0,105410.0,0.22162244]
[1748828709627,0.25702684,105420.0,105410.0,0.21919532]
[1748828709931,0.25702684,105420.0,105410.0,0.24059441]
[1748828710136,0.25684972,105420.0,105410.0,0.24059441]
[1748828710359,0.59684972,105420.0,105410.0,0.23171705]
[1748828710617,0.59684972,105420.0,105410.0,0.25007992]
[1748828710818,0.59684972,105420.0,105410.0,0.24120345]
[1748828711026,0.59684972,105420.0,105410.0,0.25007992]
[1748828711233,0.59684972,105420.0,105410.0,0.24120345]
[1748828711421,0.59684972,105420.0,105410.0,0.25007992]
[1748828711725,0.59684972,105420.0,105410.0,0.25007938]
[1748828712268,0.59684972,105420.0,105410.0,0.24704386]
[1748828713139,0.59684972,105420.0,105410.0,0.22868145]
[1748828713693,0.59674365,105420.0,105410.0,0.23755764]
[1748828713897,0.59674365,105420.0,105410.0,0.22807124]
[1748828714347,0.59674365,105420.0,105410.0,0.21919505]
[1748828714553,0.59674365,105420.0,105410.0,0.21858475]
[1748828714749,0.59674365,105420.0,105410.0,0.20970856]
[1748828718990,0.58725779,105420.0,105410.0,0.001]
[1748828719387,0.58725779,105420.0,105410.0,0.00987975]
[1748828719518,0.58725779,105420.0,105410.0,0.00987984]
[1748828719721,0.39754047,105420.0,105410.0,0.21858811]
[1748828719927,0.37572561,105420.0,105410.0,0.228681]
[1748828720149,0.02624047,105420.0,105410.0,0.228681]
[1748828720356,0.01169962,105420.0,105410.0,0.67221013]
[1748828720588,0.01169962,105420.0,105410.0,0.6758548]
[1748828721956,0.01169962,105420.0,105410.0,0.67707093]
[1748828722560,0.0115255,105420.0,105410.0,0.67707093]
[1748828722772,0.0115255,105420.0,105410.0,0.67807093]
[1748828722980,0.0115255,105420.0,105410.0,0.68007093]
[1748828723180,0.0115255,105420.0,105410.0,0.68371323]
[1748828723377,0.0115255,105420.0,105410.0,0.68007093]
[1748828726677,0.01134438,105420.0,105410.0,0.68007093]
[1748828727403,0.01134438,105420.0,105410.0,0.68351412]
[1748828728564,0.0046932,105420.0,105410.0,0.68351412]
[1748828729798,0.0046932,105420.0,105410.0,0.6835129]
[1748828731371,0.0046932,105420.0,105410.0,0.99523102]
[1748828732740,0.00449407,105420.0,105410.0,0.99523102]
[1748828734009,0.00449407,105420.0,105410.0,0.99159314]
[1748828734206,0.00449407,105420.0,105410.0,0.99645394]
[1748828734426,0.00449407,105420.0,105410.0,1.33645394]
[1748828735003,0.00449407,105420.0,105410.0,1.33445394]
[1748828735370,0.00449407,105420.0,105410.0,1.33745394]
[1748828735601,0.00449407,105420.0,105410.0,1.33545394]
[1748828735781,0.00449407,105420.0,105410.0,1.33845394]
[1748828736217,0.00449407,105420.0,105410.0,1.33545394]
[1748828736418,0.00449407,105420.0,105410.0,1.33845394]
[1748828743009,0.00449407,105420.0,105410.0,1.62945394]
[1748828745751,0.00449407,105420.0,105410.0,1.63905429]
[1748828747250,0.00449407,105420.0,105410.0,1.63419349]
[1748828748608,0.00449407,105420.0,105410.0,1.72367349]
[1748828755360,0.00449407,105420.0,105410.0,2.04025241]
[1748828755774,0.00449407,105420.0,105410.0,2.44025241]
[1748828756236,0.00449407,105420.0,105410.0,2.43425241]
[1748828756382,0.0317,105450.0,105440.0,0.21813243]
[1748828756582,0.03174863,105450.0,105440.0,0.95078998]
[1748828756787,0.03174863,105450.0,105440.0,0.63421106]
[1748828757007,0.04123098,105450.0,105440.0,0.92513106]
[1748828757212,0.03174863,105450.0,105440.0,0.92148565]
[1748828757622,0.04123116,105450.0,105440.0,0.92148565]
[1748828758108,0.0747377,105450.0,105440.0,0.21813243]
[1748828758315,0.07473761,105450.0,105440.0,0.21813243]
[1748828758566,0.07773761,105450.0,105440.0,0.21813243]
[1748828759027,0.06825472,105450.0,105440.0,0.21813243]
[1748828759970,0.06825472,105450.0,105440.0,0.53471135]
[1748828760176,0.05877201,105450.0,105440.0,0.53471135]
[1748828760380,0.06825472,105450.0,105440.0,0.53471135]
[1748828760598,0.06825463,105450.0,105440.0,0.53471135]
[1748828761913,0.07773743,105450.0,105440.0,0.53471135]
[1748828763485,0.07756731,105450.0,105440.0,0.53471135]
[1748828763834,0.06808451,105450.0,105440.0,0.53471135]
[1748828764040,0.07756731,105450.0,105440.0,0.53471135]
[1748828764659,0.08705029,105450.0,105440.0,0.53471135]
[1748828767484,0.08691019,105450.0,105440.0,0.53471135]
[1748828771209,0.08691019,105450.0,105440.0,0.53835915]
[1748828771570,0.07742721,105450.0,105440.0,0.53835895]
[1748828771794,0.08691019,105450.0,105440.0,0.53835895]
[1748828772856,0.04897926,105450.0,105440.0,0.63421325]
[1748828773062,0.00304863,105450.0,105440.0,0.63421325]
[1748828774745,0.00288852,105450.0,105440.0,0.63421325]
[1748828775912,0.00288852,105450.0,105440.0,0.63421255]
[1748828776760,0.00288852,105450.0,105440.0,0.95079147]
[1748828776983,0.00288852,105450.0,105440.0,0.98139147]
[1748828777421,0.00288852,105450.0,105440.0,0.64951255]
[1748828777630,0.00288852,105450.0,105440.0,0.66481255]
[1748828778358,0.00288852,105450.0,105440.0,0.64951255]
[1748828779718,0.00288852,105450.0,105440.0,0.63421255]
[1748828780215,0.00288852,105450.0,105440.0,0.6342122]
[1748828782589,0.01237087,105450.0,105440.0,0.6342122]
[1748828783695,0.01237087,105450.0,105440.0,0.31763328]
[1748828783880,0.01237087,105450.0,105440.0,0.6342122]
[1748828784023,0.0218534,105450.0,105440.0,0.6342122]
[1748828784606,0.00288852,105450.0,105440.0,0.63421238]
[1748828786152,0.00288852,105450.0,105440.0,0.92493238]
[1748828786559,0.00288852,105450.0,105440.0,0.92493248]
[1748828788992,0.00288852,105450.0,105440.0,0.92493245]
[1748828789193,0.01742937,105450.0,105440.0,0.31763353]
[1748828789322,0.05831181,105450.0,105440.0,0.60835353]
[1748828789729,0.06779443,105450.0,105440.0,0.60835353]
[1748828789935,0.05831181,105450.0,105440.0,0.60835353]
[1748828790341,0.06779443,105450.0,105440.0,0.60835353]
[1748828791501,0.05831181,105450.0,105440.0,0.60835353]
[1748828792757,0.05831172,105450.0,105440.0,0.60835353]
[1748828792960,0.05817162,105450.0,105440.0,0.60835353]
[1748828793334,0.06765406,105450.0,105440.0,0.60835353]
[1748828794361,0.04868927,105450.0,105440.0,0.60835353]
[1748828797771,0.04868927,105450.0,105440.0,0.60835448]
[1748828799125,0.04854417,105450.0,105440.0,0.60835448]
[1748828802196,0.04854417,105450.0,105440.0,0.60827503]
[1748828805923,0.04854417,105450.0,105440.0,0.60827501]
[1748828810939,0.04854417,105450.0,105440.0,0.60827508]
[1748828812294,0.0484431,105450.0,105440.0,0.60827508]
[1748828812506,0.07689096,105450.0,105440.0,0.20281365]
[1748828812721,0.07689096,105450.0,105440.0,0.208649]
[1748828812925,0.09585719,105450.0,105440.0,0.21813261]
[1748828813137,0.08637484,105450.0,105440.0,0.21813261]
[1748828814148,0.07689168,105450.0,105440.0,0.21813261]
[1748828814463,0.08637484,105450.0,105440.0,0.21813261]
[1748828814593,0.08637484,105450.0,105440.0,0.1991653]
[1748828814796,0.07349177,105440.0,105430.0,0.19333199]
[1748828815003,0.07349177,105440.0,105430.0,0.19918419]
[1748828815004,0.26317364,105440.0,105430.0,0.19918419]
[1748828815258,0.25369003,105440.0,105430.0,0.19918428]
[1748828815413,0.06843795,105430.0,105420.0,0.20282072]
[1748828815627,0.06843867,105430.0,105420.0,0.20868886]
[1748828815826,0.05895371,105430.0,105420.0,0.2276595]
[1748828816425,0.26319388,105430.0,105420.0,0.21817436]
[1748828817086,0.26319388,105430.0,105420.0,0.22017436]
[1748828817523,0.26319388,105430.0,105420.0,0.23065968]
[1748828817524,0.07349456,105430.0,105420.0,0.23065968]
[1748828817726,0.07349456,105430.0,105420.0,0.24014491]
[1748828818038,0.08297952,105430.0,105420.0,0.24014491]
[1748828819200,0.08297943,105430.0,105420.0,0.24014491]
[1748828819477,0.09247483,105430.0,105420.0,0.24014491]
[1748828820625,0.28217415,105430.0,105420.0,0.22117436]
[1748828820793,0.09247483,105430.0,105420.0,0.23065959]
[1748828821010,0.10195979,105430.0,105420.0,0.23065959]
[1748828822230,0.09247483,105430.0,105420.0,0.23065959]
[1748828824475,0.08298996,105430.0,105420.0,0.23065959]
[1748828824666,0.08298987,105430.0,105420.0,0.23065959]
[1748828825152,0.07350518,105430.0,105420.0,0.23065959]
[1748828825333,0.08298978,105430.0,105420.0,0.23065959]
[1748828825530,0.08298978,105430.0,105420.0,0.22117436]
[1748828825739,0.09247447,105430.0,105420.0,0.240145]
[1748828826050,0.07350518,105430.0,105420.0,0.240145]
[1748828826307,0.08298987,105430.0,105420.0,0.240145]
[1748828826921,0.07350482,105430.0,105420.0,0.240145]
[1748828827128,0.08298942,105430.0,105420.0,0.240145]
[1748828829692,0.0924742,105430.0,105420.0,0.240145]
[1748828830429,0.0924742,105430.0,105420.0,0.24014509]
[1748828830654,0.0924742,105430.0,105420.0,0.24014446]
[1748828831945,0.08298942,105430.0,105420.0,0.24014446]
[1748828832244,0.0924742,105430.0,105420.0,0.24014446]
[1748828832458,0.08298942,105430.0,105420.0,0.24014446]
[1748828832821,0.27268874,105430.0,105420.0,0.003]
[1748828833049,0.27268982,105430.0,105420.0,0.21168877]
[1748828833184,0.0829905,105430.0,105420.0,0.20220318]
[1748828833373,0.07350554,105430.0,105420.0,0.22117427]
[1748828833812,0.09247519,105430.0,105420.0,0.2306595]
[1748828834026,0.08299032,105430.0,105420.0,0.2306595]
[1748828834407,0.09247519,105430.0,105420.0,0.2306595]
[1748828834613,0.02403625,105430.0,105420.0,0.2306595]
[1748828834823,0.0094954,105430.0,105420.0,0.2619595]
[1748828835034,0.0094954,105430.0,105420.0,0.5525195]
[1748828835238,0.36845092,105440.0,105430.0,0.20866879]
[1748828835239,0.38299177,105440.0,105430.0,0.20866879]
[1748828835452,0.42317574,105440.0,105430.0,0.22763772]
[1748828835650,0.42317565,105440.0,105430.0,0.23712205]
[1748828835768,0.43265971,105440.0,105430.0,0.23712205]
[1748828836393,0.43265971,105440.0,105430.0,0.23812205]
[1748828836572,0.61285761,105440.0,105430.0,0.22963772]
[1748828837072,0.61285761,105440.0,105430.0,0.22956853]
[1748828837526,0.37345045,105440.0,105430.0,0.22956853]
[1748828837739,0.39241776,105440.0,105430.0,0.23905286]
[1748828837940,0.40190164,105440.0,105430.0,0.23905286]
[1748828838164,0.59158351,105440.0,105430.0,0.22008411]
[1748828838365,0.40190218,105440.0,105430.0,0.23905286]
[1748828839752,0.39241821,105440.0,105430.0,0.23905286]
[1748828841003,0.40190218,105440.0,105430.0,0.23905286]
[1748828842917,0.41138624,105440.0,105430.0,0.23905286]
[1748828844533,0.59158405,105440.0,105430.0,0.22008411]
[1748828846113,0.40190272,105440.0,105430.0,0.22008411]
[1748828846316,0.40190272,105440.0,105430.0,0.22956853]
[1748828848097,0.48165866,105440.0,105430.0,0.25565286]
[1748828849303,0.48165866,105440.0,105430.0,0.23905286]
[1748828849808,0.67133999,105440.0,105430.0,0.22956853]
[1748828850212,0.48165866,105440.0,105430.0,0.23905286]
[1748828850550,0.49114272,105440.0,105430.0,0.22956853]
[1748828854031,0.49114272,105440.0,105430.0,0.23905286]
[1748828854262,0.47217469,105440.0,105430.0,0.23905286]
[1748828854471,0.47217469,105440.0,105430.0,0.25515286]
[1748828854905,0.48165866,105440.0,105430.0,0.25515286]
[1748828857161,0.47217469,105440.0,105430.0,0.25515286]
[1748828857954,0.47199857,105440.0,105430.0,0.25515286]
[1748828859081,0.4719983,105440.0,105430.0,0.25515286]
[1748828859944,1.02463799,105460.0,105450.0,0.20862903]
[1748828860147,1.36969694,105460.0,105450.0,0.20862903]
[1748828860352,1.37959855,105460.0,105450.0,0.20862903]
[1748828860766,1.37011647,105460.0,105450.0,0.19914632]
[1748828860967,0.99051647,105460.0,105450.0,0.19914632]
[1748828861168,1.37311647,105460.0,105450.0,0.19914632]
[1748828861377,1.37311647,105460.0,105450.0,0.18966334]
[1748828861582,1.40471647,105460.0,105450.0,0.19914641]
[1748828862369,1.3952343,105460.0,105450.0,0.19914641]
[1748828863190,1.3982343,105460.0,105450.0,0.19914641]
[1748828864748,0.9885943,105460.0,105450.0,0.19914641]
[1748828865867,0.6981543,105460.0,105450.0,0.19914641]
[1748828866079,0.9885543,105460.0,105450.0,0.19914641]
[1748828867328,0.9726543,105460.0,105450.0,0.19914641]
[1748828867736,0.9569543,105460.0,105450.0,0.19914641]
[1748828869257,0.6665543,105460.0,105450.0,0.20862939]
[1748828869464,0.6665543,105460.0,105450.0,0.00948316]
[1748828869670,0.02402374,105450.0,105440.0,0.53963171]
[1748828869855,0.02402356,105450.0,105440.0,0.53963171]
[1748828870292,0.04298943,105450.0,105440.0,0.53963171]
[1748828870490,0.05247205,105450.0,105440.0,0.53014846]
[1748828870904,0.02502338,105450.0,105440.0,0.53014846]
[1748828871109,0.03450609,105450.0,105440.0,0.53014846]
[1748828871317,0.03550609,105450.0,105440.0,0.53014846]
[1748828871547,0.02602338,105450.0,105440.0,0.53014846]
[1748828871762,0.035506,105450.0,105440.0,0.53014846]
[1748828872195,0.0449888,105450.0,105440.0,0.53014846]
[1748828872607,0.05447169,105450.0,105440.0,0.53014846]
[1748828873746,0.035506,105450.0,105440.0,0.53014846]
[1748828874447,0.0449888,105450.0,105440.0,0.53014846]
[1748828874905,0.05447178,105450.0,105440.0,0.23974846]
[1748828875115,0.05447178,105450.0,105440.0,0.53006846]
[1748828875318,0.0449888,105450.0,105440.0,0.53006846]
[1748828875729,0.05447187,105450.0,105440.0,0.53006846]
[1748828875931,0.05447178,105450.0,105440.0,0.53006846]
[1748828879295,0.0543557,105450.0,105440.0,0.53006846]
[1748828879488,0.25350211,105450.0,105440.0,0.530069]
[1748828879686,0.25350211,105450.0,105440.0,0.53955252]
[1748828879859,0.06383877,105450.0,105440.0,0.53955252]
[1748828880067,0.06383877,105450.0,105440.0,0.54903595]
[1748828880272,0.0543557,105450.0,105440.0,0.54903595]
[1748828880597,0.04487272,105450.0,105440.0,0.54903595]
[1748828880809,0.0543557,105450.0,105440.0,0.54903595]
[1748828881379,0.06383877,105450.0,105440.0,0.54903595]
[1748828881792,0.0543557,105450.0,105440.0,0.54903595]
[1748828883577,0.06383877,105450.0,105440.0,0.25871595]
[1748828883777,0.0638394,105450.0,105440.0,0.54899595]
[1748828884899,0.23453732,105450.0,105440.0,0.1991653]
[1748828885055,0.03350834,105440.0,105430.0,0.33986547]
[1748828885257,0.04299123,105440.0,105430.0,0.60793043]
[1748828885463,0.05247511,105440.0,105430.0,0.61377166]
[1748828886337,0.24215707,105440.0,105430.0,0.49994861]
[1748828886777,0.24215707,105440.0,105430.0,0.4999487]
[1748828886995,0.25164113,105440.0,105430.0,0.51043312]
[1748828887248,0.2421577,105440.0,105430.0,0.51043312]
[1748828889009,0.23267409,105440.0,105430.0,0.5009487]
[1748828889257,0.23267409,105440.0,105430.0,0.51043321]
[1748828890786,0.23267409,105440.0,105430.0,0.51991763]
[1748828892384,0.0335087,105440.0,105430.0,0.52940196]
[1748828892954,0.03350834,105440.0,105430.0,0.52940196]
[1748828894346,0.04299231,105440.0,105430.0,0.52940196]
[1748828894547,0.04299159,105440.0,105430.0,0.52940196]
[1748828895320,0.05247556,105440.0,105430.0,0.23912196]
[1748828895529,0.05247547,105440.0,105430.0,0.52936196]
[1748828896514,0.05247547,105440.0,105430.0,0.23912196]
[1748828897766,0.2421568,105440.0,105430.0,0.19169932]
[1748828897977,0.26357346,105440.0,105430.0,0.21066897]
[1748828898095,0.26357346,105440.0,105430.0,0.22015357]
[1748828900371,0.26357346,105440.0,105430.0,0.22963808]
[1748828900927,0.25408985,105440.0,105430.0,0.22015357]
[1748828901541,0.23512218,105440.0,105430.0,0.002]
[1748828902015,0.57512218,105440.0,105430.0,0.002]
[1748828904477,0.59424185,105440.0,105430.0,0.002]
[1748828908764,0.88448185,105440.0,105430.0,0.002]
[1748828909325,0.89380445,105440.0,105430.0,0.002]
[1748828910621,0.60356445,105440.0,105430.0,0.002]
[1748828915451,0.89376445,105440.0,105430.0,0.002]
[1748828916980,0.98961875,105440.0,105430.0,0.002]
[1748828917178,0.9888809,105440.0,105430.0,0.002]
[1748828920774,0.6986809,105440.0,105430.0,0.002]
[1748828920979,1.0778809,105440.0,105430.0,0.002]
[1748828934668,0.7876809,105440.0,105430.0,0.002]
[1748828934867,1.0778009,105440.0,105430.0,0.002]
[1748828935777,0.6986809,105440.0,105430.0,0.002]
[1748828935976,1.0469009,105440.0,105430.0,0.002]
[1748828940371,1.0778009,105440.0,105430.0,0.002]
[1748828943095,0.6986809,105440.0,105430.0,0.002]
[1748828943299,1.0777609,105440.0,105430.0,0.002]
[1748828943914,1.0777609,105440.0,105430.0,0.001]
[1748828944324,1.0787609,105440.0,105430.0,0.001]
[1748828944730,0.36402581,105430.0,105420.0,0.25945888]
[1748828944867,0.36402554,105430.0,105420.0,0.25945888]
[1748828945070,0.01454085,105430.0,105420.0,0.25945888]
[1748828945252,0.01454085,105430.0,105420.0,0.26310849]
[1748828945451,0.03350933,105430.0,105420.0,0.26310849]
[1748828945886,0.03350933,105430.0,105420.0,0.26410849]
[1748828946291,0.03350933,105430.0,105420.0,0.26510849]
[1748828947361,0.67557653,105440.0,105430.0,0.25105339]
[1748828947362,0.37777361,105440.0,105430.0,0.25105339]
[1748828947558,0.44780585,105440.0,105430.0,0.26053772]
[1748828947697,0.49079744,105440.0,105430.0,0.26053772]
[1748828948100,0.50028132,105440.0,105430.0,0.26053772]
[1748828948461,0.49079744,105440.0,105430.0,0.26053772]
[1748828948673,0.49179744,105440.0,105430.0,0.26053772]
[1748828948888,0.50128132,105440.0,105430.0,0.26053772]
[1748828949040,0.50228132,105440.0,105430.0,0.26053772]
[1748828949238,0.40379735,105440.0,105430.0,0.26053772]
[1748828949444,0.40379726,105440.0,105430.0,0.26053772]
[1748828949667,0.01654085,105440.0,105430.0,0.26053772]
[1748828950228,0.01654085,105440.0,105430.0,0.35639202]
[1748828950839,0.01654085,105440.0,105430.0,0.36003981]
[1748828951913,0.0260241,105440.0,105430.0,0.36003981]
[1748828952438,0.01654085,105440.0,105430.0,0.36003981]
[1748828952656,0.002,105440.0,105430.0,0.36003981]
[1748828952864,0.04499123,105440.0,105430.0,0.65007981]
[1748828953060,0.05447493,105440.0,105430.0,0.65007981]
[1748828953267,0.04499123,105440.0,105430.0,0.65007981]
[1748828953475,0.04499123,105440.0,105430.0,0.36003981]
[1748828953685,0.04499123,105440.0,105430.0,0.64643202]
[1748828954346,0.0260241,105440.0,105430.0,0.64643202]
[1748828954552,0.03550744,105440.0,105430.0,0.64643202]
[1748828954847,0.04499096,105440.0,105430.0,0.64643202]
[1748828955052,0.06395845,105440.0,105430.0,0.64643202]
[1748828956468,0.22518967,105440.0,105430.0,0.0329]
[1748828956670,0.22519012,105440.0,105430.0,0.0329]
[1748828957292,0.22519012,105440.0,105430.0,0.24156915]
[1748828957510,0.22519012,105440.0,105430.0,0.26053844]
[1748828957709,0.22519012,105440.0,105430.0,0.26053862]
[1748828957917,0.23467364,105440.0,105430.0,0.25105366]
[1748828958122,0.23467364,105440.0,105430.0,0.23208419]
[1748828958978,0.04499231,105440.0,105430.0,0.25105312]
[1748828959189,0.2441577,105440.0,105430.0,0.24156879]
[1748828959393,0.2441577,105440.0,105430.0,0.2510533]
[1748828960624,0.23467409,105440.0,105430.0,0.24156879]
[1748828960825,0.23467409,105440.0,105430.0,0.24156897]
[1748828961027,0.21570624,105440.0,105430.0,0.0329]
[1748828961380,0.21570624,105440.0,105430.0,0.0165]
[1748828961604,0.21570624,105440.0,105430.0,0.02598496]
[1748828961793,0.21570624,105440.0,105430.0,0.20866915]
[1748828962357,0.02402563,105430.0,105420.0,0.53273094]
[1748828962524,0.23269433,105430.0,105420.0,0.6380711]
[1748828962732,0.24217929,105430.0,105420.0,0.6380711]
[1748828962894,0.03350969,105430.0,105420.0,0.64755633]
[1748828963294,0.04299447,105430.0,105420.0,0.64755633]
[1748828963504,0.04299447,105430.0,105420.0,0.64855633]
[1748828964301,0.05247916,105430.0,105420.0,0.64855633]
[1748828964571,0.05247916,105430.0,105420.0,0.64955633]
[1748828964807,0.05247916,105430.0,105420.0,0.35955633]
[1748828965277,0.04299438,105430.0,105420.0,0.35955633]
[1748828965498,0.05247916,105430.0,105420.0,0.35955633]
[1748828965656,0.06196412,105430.0,105420.0,0.35955633]
[1748828965862,0.05247916,105430.0,105420.0,0.35955685]
[1748828966058,0.05247916,105430.0,105420.0,0.35007162]
[1748828966059,0.24217848,105430.0,105420.0,0.35007162]
[1748828966236,0.25166344,105430.0,105420.0,0.35007162]
[1748828966438,0.06196412,105430.0,105420.0,0.35007162]
[1748828966682,0.06196412,105430.0,105420.0,0.35955685]
[1748828967396,0.03350969,105430.0,105420.0,0.35955685]
[1748828967811,0.04299438,105430.0,105420.0,0.35955685]
[1748828968905,0.03350969,105430.0,105420.0,0.35955685]
[1748828969178,0.04299438,105430.0,105420.0,0.35955685]
[1748828970005,0.05247916,105430.0,105420.0,0.35955685]
[1748828970268,0.04299438,105430.0,105420.0,0.35955756]
[1748828971350,0.03350969,105430.0,105420.0,0.35955756]
[1748828971591,0.04299438,105430.0,105420.0,0.35955756]
[1748828972418,0.03350969,105430.0,105420.0,0.35955756]
[1748828972855,0.04299438,105430.0,105420.0,0.35955756]
[1748828975725,0.04299429,105430.0,105420.0,0.35955756]
[1748828977344,0.04299429,105430.0,105420.0,0.67616454]
[1748828979096,0.05247898,105430.0,105420.0,0.67616727]
[1748828979325,0.06196376,105430.0,105420.0,0.67616727]
[1748828979541,0.05247898,105430.0,105420.0,0.67616727]
[1748828980030,0.2421783,105430.0,105420.0,0.22025003]
[1748828980277,0.23269424,105430.0,105420.0,0.21433562]
[1748828980513,0.23269424,105430.0,105420.0,0.22382103]
[1748828980761,0.23269424,105430.0,105420.0,0.22017374]
[1748828981172,0.05247979,105430.0,105420.0,0.22965906]
[1748828981407,0.01454085,105430.0,105420.0,0.36789859]
[1748828981650,0.04299402,105430.0,105420.0,0.68815286]
[1748828981868,0.03350942,105430.0,105420.0,0.68815286]
[1748828982087,0.04299402,105430.0,105420.0,0.6881526]
[1748828983319,0.04299402,105430.0,105420.0,0.37154567]
[1748828983480,0.03350942,105430.0,105420.0,0.37154567]
[1748828983660,0.04299402,105430.0,105420.0,0.37154567]
[1748828984483,0.03350942,105430.0,105420.0,0.37154567]
[1748828984640,0.04299402,105430.0,105420.0,0.37154567]
[1748828987180,0.03350942,105430.0,105420.0,0.37154567]
[1748828987407,0.024025,105430.0,105420.0,0.37154567]
[1748828987622,0.01454085,105430.0,105420.0,0.68815265]
[1748828988018,0.024025,105430.0,105420.0,0.68815265]
[1748828988653,0.01454085,105430.0,105420.0,0.68815265]
[1748828988922,0.54862903,105450.0,105440.0,0.208649]
[1748828989145,0.2181121,105450.0,105440.0,0.208649]
[1748828989361,0.23265295,105450.0,105440.0,0.208649]
[1748828989817,0.22317024,105450.0,105440.0,0.20864918]
[1748828990332,0.22617024,105450.0,105440.0,0.20864918]
[1748828990744,0.22617024,105450.0,105440.0,0.21813297]
[1748828990945,0.22917024,105450.0,105440.0,0.21813297]
[1748828993917,0.22917024,105450.0,105440.0,0.25931649]
[1748828993918,0.0395069,105450.0,105440.0,0.25931649]
[1748828994123,0.2386534,105450.0,105440.0,0.24983297]
[1748828994326,0.22917042,105450.0,105440.0,0.24983297]
[1748828995644,0.22917042,105450.0,105440.0,0.23423297]
[1748828998912,0.22917042,105450.0,105440.0,0.24371667]
[1748829001969,0.22917042,105450.0,105440.0,0.25931667]
[1748829002176,0.03950663,105450.0,105440.0,0.2688001]
[1748829002380,0.05847232,105450.0,105440.0,0.26880028]
[1748829002580,0.24813566,105450.0,105440.0,0.26880028]
[1748829003343,0.24813566,105450.0,105440.0,0.26879983]
[1748829004770,0.05847232,105450.0,105440.0,0.26879938]
[1748829005975,0.0300232,105450.0,105440.0,0.26879938]
[1748829006153,0.04898835,105450.0,105440.0,0.26879938]
[1748829006394,0.03950564,105450.0,105440.0,0.26879938]
[1748829006819,0.04898826,105450.0,105440.0,0.26879938]
[1748829007245,0.03950564,105450.0,105440.0,0.26879938]
[1748829007449,0.03002338,105450.0,105440.0,0.26879938]
[1748829009592,0.02054085,105450.0,105440.0,0.36465368]
[1748829009805,0.02054085,105450.0,105440.0,0.68126066]
[1748829010016,0.006,105450.0,105440.0,0.68126066]
[1748829010675,0.003,105450.0,105440.0,0.68126066]
[1748829011104,0.0432734,105460.0,105450.0,0.23471174]
[1748829011307,0.04327331,105460.0,105450.0,0.33056604]
[1748829011513,0.04327331,105460.0,105450.0,0.34716604]
[1748829011988,0.0527553,105460.0,105450.0,0.34716604]
[1748829012193,0.04327331,105460.0,105450.0,0.34716604]
[1748829012611,0.04627331,105460.0,105450.0,0.34716604]
[1748829013436,0.02730987,105460.0,105450.0,0.66377302]
[1748829013643,0.03679141,105460.0,105450.0,0.66377302]
[1748829013857,0.02102714,105460.0,105450.0,0.95373302]
[1748829014501,0.00648629,105460.0,105450.0,0.95373302]
[1748829015120,0.00348629,105460.0,105450.0,0.95373302]
[1748829015316,0.00148629,105460.0,105450.0,0.63712604]
[1748829015534,0.00248629,105460.0,105450.0,0.63712604]
[1748829019060,0.00248629,105460.0,105450.0,0.95353429]